Cogmind - Beta 15 @@@ ROGUE MODE // 2025.07.07 @ 14:24:35 Player: LightKnight Result: Destroyed by as-04387 with Assembled Rifle Performance ------------- Evolutions (0) 0 Regions Visited (2) 400 Robots Destroyed (29) 145 Value Destroyed (744) 744 Prototype IDs (2) 40 Alien Tech Used (0) 0 Bonus (0) 0 TOTAL SCORE: 1329 Bonus ------- None Cogmind --------- Core Integrity 0/250 Matter 272/300 Energy 250/250 System Corruption 2% Temperature Cool (49) Movement Core (250) Ox4 Location -10/Mines Parts ------- > --- POWER (1) -------- Ion Engine > --- PROPULSION (2) --- Aluminum Leg > --- UTILITY (2) ------ Heat Sink Small Storage Unit > --- WEAPON (2) ------- Small Laser Light Assault Rifle > --- INVENTORY (8) ---- Large Storage Unit High-capacity Storage Unit Structural Scanner Datajack Peak State ------------ > --- POWER ------------ Ion Engine > --- PROPULSION ------- Light Treads Aluminum Leg > --- UTILITY ---------- Improved Heat Sink Small Storage Unit > --- WEAPON ----------- Small Laser Particle Gun > --- INVENTORY -------- Ion Engine Wheel Compact Wheel Heat Sink High-capacity Storage Unit Structural Scanner Small Laser Datajack [Rating: 10] Favorites ----------- Power Ion Engine Engine Ion Engine Propulsion Aluminum Leg Treads Light Treads Leg Aluminum Leg Utility Small Storage Unit Device Improved Heat Sink Storage Small Storage Unit Weapon Small Laser Energy Gun Small Laser Ballistic Gun Assault Rifle Build | -11 -10 -10 ------- Run | Yrd Mat Min Slots Evolved . | . . . Power . | . . . Propulsion . | . . . Utility . | . . . Weapon . | . . . Parts Attached 16 | . 13 3 Power 3 | . 2 1 Engine 3 | . 2 1 Core . | . . . Reactor . | . . . Propulsion 4 | . 4 . Treads 2 | . 2 . Leg 2 | . 2 . Wheel . | . . . Hover . | . . . Flight . | . . . Utility 3 | . 3 . Device 3 | . 3 . Storage . | . . . Processor . | . . . Hackware . | . . . Protection . | . . . Artifact . | . . . Weapon 6 | . 4 2 Energy Gun 4 | . 3 1 Energy Cannon . | . . . Ballistic Gun 2 | . 1 1 Ballistic Cannon . | . . . Launcher . | . . . Special Weapon . | . . . Impact Weapon . | . . . Slashing Weapon . | . . . Piercing Weapon . | . . . Special Melee Weapon . | . . . Unidentified Prototypes . | . . . Parts Lost 10 | . 5 5 Power 1 | . . 1 Propulsion 3 | . 2 1 Utility 1 | . . 1 Weapon 5 | . 3 2 Highest Loss Streak 3 | . 3 3 To Critical Strikes . | . . . Average Backups 7 | . 7 6 Power . | . 1 . Propulsion 1 | . 1 . Utility 3 | . 2 3 Weapon 1 | . 1 1 Tool/Special . | . . . Unused Backups 12 | . 9 3 Power 1 | . 1 . Propulsion 4 | . 4 . Utility 4 | . 2 2 Weapon 2 | . 2 . Tool/Special 1 | . . 1 Average Slot Usage (%) 97 | . 97 97 Engine 13 | . 14 13 Treads 12 | . 12 12 Leg 15 | . 15 14 Device 13 | . 13 13 Storage 14 | . 14 14 Energy Gun 25 | . 25 26 Ballistic Gun 1 | . 1 1 Peak Build Rating 10 | . 10 10 Average Rating 8 | . 8 8 On Entrance 7 | 6 6 10 Naked Turns . | . . . Heaviest Build 16 | 12 16 15 Greatest Support 40 | 20 40 20 Greatest Overweight (x) 4 | . 4 . Average Overweight (x) . | . . . Largest Inventory Capacity 8 | . 8 8 Average Capacity 8 | . 8 8 Most Carried 8 | . 8 8 Average Carried 7 | . 7 6 Final Capacity 8 | 8 8 8 Final Carried 8 | 6 8 4 Class Distribution -------------------- 71% | Scavenger-Mutant 28% | Mutant Dominant Class ---------------- Scavenger-Mutant | -10/Materials Scavenger-Mutant | -10/Mines Resources | -11 -10 -10 ----------- Run | Yrd Mat Min Matter Collected 435 | 198 225 12 Remotely . | . . . Salvage Created 973 | . 887 86 Parts 52 | . 49 3 Haulers Intercepted 1 | . 1 . Recyclers Shooed 1 | . 1 . Parts Field Recycled . | . . . Retrieved Matter . | . . . Parts Self-Destructed . | . . . Prevented . | . . . Kills | -11 -10 -10 ------- Run | Yrd Mat Min Combat Hostiles Destroyed 29 | . 23 6 Guns 28 | . 22 6 AOE 1 | . 1 . Classes Destroyed 5 | . 4 1 Hauler 1 | . 1 . Watcher 3 | . 3 . Swarmer 8 | . 6 2 Grunt 17 | . 17 . Assembled 4 | . . 4 Best Kill Streak 4 | . 4 3 Combat Bots Only 4 | . 4 3 Max Kills in Single Turn 2 | . 2 1 Gunslinging . | . . . Exploded 1 | . 1 . Melee . | . . . Uniques/NPCs Destroyed . | . . . Combat | -11 -10 -10 -------- Run | Yrd Mat Min Hostile Shots Fired 178 | . 140 38 Missed 54 | . 43 11 Hits 124 | . 97 27 Melee 11 | . . 11 Projectile 113 | . 97 16 Critical Strikes 1 | . . 1 Part Disruptions 1 | . . 1 Damage Taken 1539 | . 1091 448 Core 252 | . 179 73 Absorbed by Shields . | . . . Regen/Repaired (Parts) 144 | . 144 . Core Remaining (%) 100 | 100 . . Volleys Fired 111 | . 89 22 Largest 2 | . 2 2 Hottest 105 | . 105 105 Shots Fired 192 | . 150 42 Gun 192 | . 150 42 Cannon . | . . . Launcher . | . . . Special . | . . . Kinetic 38 | . 30 8 Thermal 129 | . 95 34 Explosive . | . . . Electromagnetic 25 | . 25 . Robot Hit Streak 17 | . 17 4 Robot Miss Streak 4 | . 4 4 Penetration Max . | . . . Secondary Targets 3 | . 1 2 Max Gunslinging Chain 1 | . 1 1 Shots Hit Robots 110 | . 89 21 Core Hits 53 | . 43 10 Critical Kills . | . . . Critical Parts Destroyed . | . . . Critical Strikes . | . . . Melee Attacks . | . . . Impact . | . . . Slashing . | . . . Piercing . | . . . Sneak Attacks . | . . . Combat Hostiles . | . . . Follow-up Attacks . | . . . Damage Inflicted 1558 | . 1306 252 Guns 1476 | . 1224 252 Cannons . | . . . Explosions 70 | . 70 . Melee . | . . . Ramming 12 | . 12 . Kinetic 322 | . 302 20 Thermal 1047 | . 815 232 Explosive . | . . . Electromagnetic 177 | . 177 . Impact . | . . . Slashing . | . . . Piercing . | . . . Highest Corruption 2 | . 2 2 Average Corruption 2 | . 2 2 Corruption Purged . | . . . Corruption Blocked . | . . . Effects 17 | . 13 4 Message Errors 4 | . 3 1 Matter Fused 2 | . 2 . Heat Flow Errors 4 | . 3 1 Energy Discharges 3 | . 3 . Data Loss (minor) 2 | . 1 1 Weapon Failures 2 | . 1 1 Overload Shots . | . . . Overflow Damage . | . . . Projectiles . | . . . Explosions . | . . . Melee . | . . . Knockbacks . | . . . Impact . | . . . Kinetic . | . . . Secondary . | . . . Self-Inflicted Damage . | . . . Shots . | . . . Rammed 4 | . 4 . Targets Rammed 7 | . 7 . Kicked 3 | . 3 . Crushed . | . . . Highest Temperature 242 | . 242 115 Average Temperature 44 | . 48 34 Received Heat Transfer 515 | . 495 20 Siege Activations . | . . . Martial Activations . | . . . Shielding Activations . | . . . Robots Disrupted . | . . . Combat Hostiles . | . . . Robots Corrupted . | . . . Combat Hostiles . | . . . Parts Fried 1 | . 1 . Impact Corruptions . | . . . Robots Melted . | . . . Combat Hostiles . | . . . Parts Melted 3 | . 3 . Heat Transferred 2408 | . 1862 546 Parts Sabotaged . | . . . Parts Stolen . | . . . Parts Stripped . | . . . Power Chain Reactions 1 | . 1 . Alert | -11 -10 -10 ------- Run | Yrd Mat Min Maximum Alert Level 1 | . 1 . Low Security (%) 56 | . 47 100 Level 1 43 | . 52 . Level 2 . | . . . Level 3 . | . . . Level 4 . | . . . Level 5 . | . . . High Security . | . . . Max Security . | . . . Peak Influence 295 | . 295 161 Initial 111 | . . 111 Average 162 | . 178 82 Influence Increases 824 | . 774 50 Destroy 0b10 Robot/C 500 | . 460 40 Destroy 0b10 Robot/NC 20 | . 20 . Destroy Leader 118 | . 108 10 Successful Hack 19 | . 19 . Select Force Hacks 60 | . 60 . Disable Machine 15 | . 15 . Destroy Structure 2 | . 2 . Lose Combat Pursuer 90 | . 90 . Influence Decreases 824 | . 487 337 Entered New Map 176 | . . 176 Time Decay 548 | . 437 111 Lost Part 100 | . 50 50 Squads Dispatched 6 | . 6 . Investigation 3 | . 3 . Extermination . | . . . Reinforcement 3 | . 3 . Assault . | . . . Garrison . | . . . Intercept . | . . . Searches Triggered . | . . . Construction Impeded . | . . . Haulers Reinforced . | . . . Active Scanning Responses . | . . . Cargo Convoy Interrupts . | . . . Stealth | -11 -10 -10 --------- Run | Yrd Mat Min Distress Signals 3 | . 3 . Communications Jammed . | . . . Distress Signals . | . . . Times Spotted 50 | . 38 12 Peak Tracking Total 9 | . 8 9 Tactical Retreats 3 | . 2 1 Traps | -11 -10 -10 ------- Run | Yrd Mat Min Traps Triggered 2 | . 2 . Indirectly . | . . . Trap Hack Attempts . | . . . Triggered . | . . . Disarmed . | . . . Reprogrammed . | . . . Reused . | . . . Traps Extracted . | . . . Installed . | . . . Triggered . | . . . Machines | -11 -10 -10 ---------- Run | Yrd Mat Min Machines Disabled 1 | . 1 . Max in Single Turn 1 | . 1 . Machines Repaired . | . . . Machines Dismantled . | . . . Machines Sabotaged . | . . . Overloaded Fab Kills . | . . . Hacking | -11 -10 -10 --------- Run | Yrd Mat Min Machines Accessed 8 | . 8 . Terminals 5 | . 5 . Fabricators . | . . . Repair Stations 1 | . 1 . Recycling Units 2 | . 2 . Scanalyzers . | . . . Garrison Access . | . . . Total Hacks 23 | . 23 . Successful 11 | . 11 . Failed 11 | . 11 . Catastrophic . | . . . Database Lockouts 1 | . 1 . Manual 15 | . 15 . Terminals 16 | . 16 . Fabricators . | . . . Repair Stations 5 | . 5 . Recycling Units 2 | . 2 . Scanalyzers . | . . . Garrison Access . | . . . Terminal Hacks 3 | . 3 . Robot Analysis 1 | . 1 . Prototype ID Bank 1 | . 1 . Locate Traps 1 | . 1 . Fabricator Hacks . | . . . Repair Station Hacks 4 | . 4 . Scan Component 2 | . 2 . Repair 2 | . 2 . Recycling Unit Hacks . | . . . Scanalyzer . | . . . Garrison Access Hacks . | . . . Unauthorized Hacks 4 | . 4 . Terminals 2 | . 2 . Botnet 2 | . 2 . Fabricators . | . . . Repair Stations . | . . . Recycling Units 2 | . 2 . Tunnel 2 | . 2 . Scanalyzers . | . . . Garrison Access . | . . . Data Cores Recovered . | . . . Used . | . . . Hacking Detections 7 | . 7 . Full Trace Events 1 | . 1 . Feedback Events . | . . . Feedback Blocked . | . . . Robot Schematics Acquired . | . . . Robots Built . | . . . Authchips . | . . . Time . | . . . Total Robot Build Rating . | . . . Part Schematics Acquired . | . . . Parts Built . | . . . Authchips . | . . . Time . | . . . Total Part Build Rating . | . . . Parts Repaired 2 | . 2 . Time 58 | . 58 . Parts Recycled . | . . . Recycled Matter . | . . . Retrieved Matter . | . . . Retrieved Components . | . . . Parts Scanalyzed . | . . . Part Schematics Acquired . | . . . Parts Damaged . | . . . Bothacking | -11 -10 -10 ------------ Run | Yrd Mat Min Used RIF Installer . | . . . Robots Hacked . | . . . Non-combat . | . . . Combat . | . . . Robot Hacks Applied . | . . . Relay Couplers Released . | . . . Fabnet Peak Effective % . | . . . Robots Rewired . | . . . Allies Hacked . | . . . Hacks Repelled . | . . . Allies | -11 -10 -10 -------- Run | Yrd Mat Min Total Allies . | . . . Largest Group . | . . . Highest-Rated Group . | . . . Highest-Rated Ally . | . . . Total Orders . | . . . Ally Attacks . | . . . Total Damage . | . . . Kills . | . . . Allies Corrupted . | . . . Allies Melted . | . . . Intel | -11 -10 -10 ------- Run | Yrd Mat Min Active Infowar (turns) 228 | . 228 . Structural 228 | . 228 . Robot Analysis Total 1 | . 1 . Derelict Logs Recovered . | . . . Drone Launches . | . . . Drone Recoveries . | . . . Exploration | -11 -10 -10 ------------- Run | Yrd Mat Min Turns Passed 1610 | . 1351 259 Spaces Moved 692 | 1 631 60 Core 2 | . 2 . Treads 402 | . 342 60 Legs 288 | 1 287 . Wheels . | . . . Hover . | . . . Flight . | . . . Fastest Speed 120 | 120 120 160 Average Speed 157 | 120 157 160 Slowest Speed 250 | 120 250 160 Overloaded Moves . | . . . Propulsion Burnouts . | . . . Robots Hopped . | . . . Potential Cave-ins . | . . . Cave-ins Triggered . | . . . Exploration Rate (%) 36 | 2 98 8 Regions Visited 2 Branch Regions 1 Pre-discovered Areas 2 | . 2 . Known Exits Taken . | . . . Unknown Exits Taken 2 | 1 1 . Scrap Searched . | . . . Spaces Dug . | . . . Terrain Destroyed . | . . . Melee . | . . . Projectile . | . . . AOE . | . . . Terrain Rammed . | . . . Walls Destroyed . | . . . Machines Disabled . | . . . Actions | -11 -10 -10 --------- Run | Yrd Mat Min Total 1019 | . 838 181 Wait 173 | . 78 95 Move 690 | . 630 60 Hop . | . . . Pick Up 7 | . 7 . Fast Attach 8 | . 8 . Attach 7 | . 3 4 Detach 2 | . 2 . Swap 5 | . 5 . Drop 9 | . 9 . Fire 111 | . 89 22 Melee . | . . . Ram . | . . . Kick 3 | . 3 . Crush 4 | . 4 . Escape Stasis . | . . . Rewire . | . . . Trap . | . . . Miscellaneous . | . . . Route ------- -11/Scrapyard -10/Materials (discovered 6 exits: [*Mat x3] / [*Min x2] / [*Sub]) -10/Mines History --------- Turn | Location | Event 1 | -11/Scrapyard | Discovered new exit (range 0) 1 | -11/Scrapyard | Entered Materials 43 | -10/Materials | Discovered new exit (range 11) 286 | -10/Materials | Lost 3 parts (1n2w) 348 | -10/Materials | Build established: Mutant 365 | -10/Materials | Discovered new exit (range 7) 418 | -10/Materials | Discovered new exit (range 16) 592 | -10/Materials | Core integrity fell below 50% 592 | -10/Materials | Discovered new exit (range 8) 710 | -10/Materials | Build established: Scavenger-Mutant 733 | -10/Materials | Discovered new exit (range 5) 889 | -10/Materials | Central database locked down 1081 | -10/Materials | Repaired Particle Gun 1108 | -10/Materials | Repaired Lgt. Treads 1183 | -10/Materials | Discovered new exit (range 10) 1352 | -10/Materials | Entered Mines 1403 | -10/Mines | Assembled infested the area 1408 | -10/Mines | Assisted by a Guerilla fighting off Assembled 1578 | -10/Mines | Core integrity fell below 20% 1611 | -10/Mines | Destroyed by as-04387 with Assembled Rifle Last Messages --------------- 01409_ as-47928 destroyed. 01417_ YN-VP5(h) knocked back. 01418_ YN-VP5(h) destroyed. 01432_ Destroyed Asb. Hover Unit. 01433_ Imp. Heat Sink destroyed. 01436_ Ion Engine destroyed. 01438_ as-56226 destroyed. 01487_ System corrupted: Component data lost. 01514_ 2E9RI/TKDMAOKP2NALO&BNI%C: 01553_ System corrupted: Heat flow error (+144). 01567_ Acquired 12 matter. 01581_ Lgt. Treads destroyed. 01584_ Sml. Laser destroyed. 01586_ Particle Gun destroyed. 01594_ as-01604 destroyed. 01603_ Knocked back. 01605_ as-35484 destroyed. 01605_ Switching to secondary target: as-04387. 01608_ as-88798 destroyed. 01608_ Switching to secondary target: as-04387. Map ----- +----------------------------------------------------+ | ??????????????????????????????????????? | | ??????????????????????????????????????? | | ??????????????????????????????????????? | | ??????????????????????????????????????? | | ??????????????????????????????????????? | | ??????????????????????????????????????? | | ??????????????????????????????????????? | | ??????????????????????????????????????? | | ??????????????????????????????????????? | | ??????????????????????????????????????? | | ??????????????????????????????????????? | | ??????????????????????????????????????? | | ??????????????????????????????????????? | | ??????????????????????????????????????? | | ???####???????????????????????????????? | | ??## #####???????????????????????????? | | ??# %= #####???????????????????????? | | ??# =% #???????????????????????? | | ??##**% ### #???????????????????????? | | ???########?# #???????????????????????? | | ????????????# #???????????????????????? | | ????????????# #???????????????????????? | | ????????????# #???????????????????????? | | ????????????# #???????????????????????? | | ????????????# ######??????????????????? | | ????????????# @%a #??????????????????? | | ????????????#####a #### #?????????????? | | ????????????????# #?????????????? | | ????????????????# ######?????????????? | | ????????????????# #??????????????????? | | ????????????????# ]#??????????????????? | | ???????????????? =% ??????????????????? | | ??????????????? ! ??????????????????? | | ?????????????? ?????????????????? | | ????????????? ????????????????? | | ???????????? ????????????????? | | ???????????? ## ???????????????? | | ??????????? ?# ??????????????? | | ?????????? ??##?????????????? | | ?????????? % ## ?????????????????? | | ????????? %#?# ?????????????????? | | ??????????? #???? ?????????????????? | | ??????????? ?????# ?????????????????? | | ??????????????????### ????????????????? | | ??????????????????????????????????????? | | ??????????????????????????????????????? | | ??????????????????????????????????????? | | ??????????????????????????????????????? | | ??????????????????????????????????????? | | ??????????????????????????????????????? | +----------------------------------------------------+ Best States ------------- Heat Dissipation 39 Energy Generation 10 Energy Capacity 250 Matter Stores 300 Matter Capacity 300 Sight Range 16 Terrain Scan Density 10 Evasion (%) 55 Recoil Reduction 2 Item Schematics ----------------- None Robot Schematics ------------------ None Fabricated ------------ Nothing Repaired ---------- Particle Gun | 5% | -10/Materials Lgt. Treads | 47% | -10/Materials Alien Tech Used ----------------- None Achievements -------------- None Challenges ------------ None Game ------ Seed MultireflexHeavyCanceller Manual? 0 Play Time 00:22:18 Cumulative 372.3 hours Start 2025.07.06 @ 20:10:18 End 2025.07.07 @ 14:24:35 Sessions 2 Manual Loads 0 Difficulty Rogue Special Mode None Game No. 251 Rogue 251 Adventurer 0 Explorer 0 Win Type - Total 27 Types 21/0/4/2/0/0/0/0/0/0 Lore% 90 Gallery% 81 Achievement% 67 Wizard Run 0 Options --------- Layout 0 ASCII 1 Keyboard 1 Movement Arrows Keybinds 0 Fullscreen 2 Font 18/Terminus Map View 76x50 Zoom Use 0% Tactical HUD 1 Map Filters NONE Filters NONE Steam 1 RUN: a6c914da-72ff-403c-8ed3-9b8a735d725b